[Event "*** Titled Tuesday Blitz"]
[Site "Chess.com"]
[Date "2018.11.06"]
[Round "10"]
[White "Rashad_Zeynalli"]
[Black "Barcelona_Guy"]
[Result "1-0"]
[WhiteElo "2393"]
[BlackElo "2465"]
[TimeControl "180+2"]
[EndTime "15:19:43 PST"]
[Termination "Rashad_Zeynalli won on time"]

1. d4 {[%clk 0:03:01.9]} 1... Nf6 {[%clk 0:02:59.9]} 2. Bf4 {[%clk 0:03:03.3]}
2... d5 {[%clk 0:02:58.1]} 3. e3 {[%clk 0:03:04.5]} 3... c5 {[%clk 0:02:57.4]}
4. c3 {[%clk 0:03:04.9]} 4... Nc6 {[%clk 0:02:58.6]} 5. Nf3 {[%clk 0:03:06.2]}
5... e6 {[%clk 0:03:00]} 6. Nbd2 {[%clk 0:03:06.6]} 6... Bd6 {[%clk 0:03:01.5]}
7. Bg3 {[%clk 0:03:07.6]} 7... cxd4 {[%clk 0:03:02.1]} 8. exd4 {[%clk
0:03:08.1]} 8... O-O {[%clk 0:02:57.3]} 9. Bd3 {[%clk 0:03:09.4]} 9... b6 {[%clk
0:02:55.9]} 10. Ne5 {[%clk 0:03:09]} 10... Bb7 {[%clk 0:02:56.7]} 11. f4 {[%clk
0:03:04.5]} 11... Ne7 {[%clk 0:02:57.9]} 12. Qf3 {[%clk 0:03:03.4]} 12... Nf5
{[%clk 0:02:58.7]} 13. Bf2 {[%clk 0:03:04.6]} 13... Be7 {[%clk 0:02:59.5]} 14.
Qh3 {[%clk 0:03:00.3]} 14... Nd6 {[%clk 0:02:58.6]} 15. O-O {[%clk 0:02:47]}
15... Nfe4 {[%clk 0:02:58.4]} 16. Rae1 {[%clk 0:02:42.9]} 16... f5 {[%clk
0:02:55.8]} 17. Ndf3 {[%clk 0:02:40.1]} 17... Rc8 {[%clk 0:02:55.1]} 18. Bh4
{[%clk 0:02:34]} 18... Bxh4 {[%clk 0:02:54.9]} 19. Nxh4 {[%clk 0:02:35.9]} 19...
b5 {[%clk 0:02:49.4]} 20. Nhf3 {[%clk 0:02:36.2]} 20... a5 {[%clk 0:02:49.6]}
21. Bxe4 {[%clk 0:02:31.9]} 21... dxe4 {[%clk 0:02:48.9]} 22. Ng5 {[%clk
0:02:29.6]} 22... h6 {[%clk 0:02:46.3]} 23. Nxe6 {[%clk 0:02:30.4]} 23... Qe7
{[%clk 0:02:38.9]} 24. Nxf8 {[%clk 0:02:30.8]} 24... Qxf8 {[%clk 0:02:40.8]} 25.
Re3 {[%clk 0:02:20.7]} 25... Bd5 {[%clk 0:02:41.8]} 26. Rg3 {[%clk 0:02:20.6]}
26... Kh7 {[%clk 0:02:37.8]} 27. Re1 {[%clk 0:02:17.5]} 27... Bxa2 {[%clk
0:02:37.9]} 28. Ree3 {[%clk 0:02:17.4]} 28... b4 {[%clk 0:02:38.2]} 29. Rg6
{[%clk 0:02:16.4]} 29... bxc3 {[%clk 0:02:39.3]} 30. bxc3 {[%clk 0:02:11.9]}
30... Rb8 {[%clk 0:02:40.3]} 31. Reg3 {[%clk 0:02:01.6]} 31... Rb1+ {[%clk
0:02:35.5]} 32. Kf2 {[%clk 0:02:02.8]} 32... Rb2+ {[%clk 0:02:37]} 33. Ke3
{[%clk 0:02:03.2]} 33... Bc4 {[%clk 0:02:14]} 34. Rxg7+ {[%clk 0:01:29.4]} 34...
Qxg7 {[%clk 0:02:15.9]} 35. Rxg7+ {[%clk 0:01:30.3]} 35... Kxg7 {[%clk
0:02:17.8]} 36. d5 {[%clk 0:01:17.9]} 36... Re2+ {[%clk 0:02:05.3]} 37. Kd4
{[%clk 0:01:17.7]} 37... Rd2+ {[%clk 0:02:06.9]} 38. Ke3 {[%clk 0:01:06]} 38...
Rc2 {[%clk 0:01:44.2]} 39. Qg3+ {[%clk 0:01:03.7]} 39... Kf8 {[%clk 0:01:44.7]}
40. Qg6 {[%clk 0:00:59.5]} 40... Rxc3+ {[%clk 0:01:42.8]} 41. Kd2 {[%clk
0:00:53.3]} 1-0

[Event "*** Titled Tuesday Blitz"]
[Site "Chess.com"]
[Date "2018.11.06"]
[Round "10"]
[White "dretch"]
[Black "BilodeauA"]
[Result "1-0"]
[WhiteElo "2801"]
[BlackElo "2833"]
[TimeControl "180+2"]
[EndTime "15:19:47 PST"]
[Termination "dretch won by checkmate"]

1. d4 {[%clk 0:03:01.9]} 1... d5 {[%clk 0:03:00.5]} 2. c4 {[%clk 0:03:03]} 2...
dxc4 {[%clk 0:03:02.4]} 3. e3 {[%clk 0:03:04.1]} 3... e5 {[%clk 0:03:03.2]} 4.
Bxc4 {[%clk 0:03:05]} 4... Nc6 {[%clk 0:03:04.6]} 5. Nf3 {[%clk 0:03:04.1]} 5...
e4 {[%clk 0:03:06]} 6. Nfd2 {[%clk 0:03:04.1]} 6... Qg5 {[%clk 0:03:07]} 7. g3
{[%clk 0:02:52]} 7... Nf6 {[%clk 0:03:07.8]} 8. Nc3 {[%clk 0:02:50.5]} 8... Qg6
{[%clk 0:03:09.1]} 9. Nd5 {[%clk 0:02:46]} 9... Nxd5 {[%clk 0:02:57.6]} 10. Bxd5
{[%clk 0:02:46.9]} 10... Bf5 {[%clk 0:02:48.1]} 11. Qb3 {[%clk 0:02:00.7]} 11...
Nb4 {[%clk 0:02:46.8]} 12. Bxb7 {[%clk 0:02:01.7]} 12... Rb8 {[%clk 0:02:29.2]}
13. Qa4+ {[%clk 0:02:02.2]} 13... Bd7 {[%clk 0:02:25]} 14. Qxa7 {[%clk
0:02:01.7]} 14... Nd3+ {[%clk 0:01:43.8]} 15. Kf1 {[%clk 0:01:58.4]} 15... Rxb7
{[%clk 0:00:36.9]} 16. Qa8+ {[%clk 0:01:58.9]} 16... Ke7 {[%clk 0:00:35.2]} 17.
Qxb7 {[%clk 0:01:59.7]} 17... f5 {[%clk 0:00:36]} 18. b3 {[%clk 0:01:23.1]}
18... Qh5 {[%clk 0:00:35.5]} 19. Ba3+ {[%clk 0:01:18.3]} 19... Ke8 {[%clk
0:00:27]} 20. Qa8+ {[%clk 0:01:04.8]} 20... Kf7 {[%clk 0:00:27.2]} 21. h4 {[%clk
0:00:58.2]} 21... Bxa3 {[%clk 0:00:24.9]} 22. Qxa3 {[%clk 0:00:55.5]} 22... Bb5
{[%clk 0:00:25.9]} 23. Nc4 {[%clk 0:00:49.3]} 23... Qf3 {[%clk 0:00:09.2]} 24.
Rh2 {[%clk 0:00:50]} 24... Nxf2 {[%clk 0:00:10]} 25. Rxf2 {[%clk 0:00:41.4]}
25... Qh1+ {[%clk 0:00:11.1]} 26. Ke2 {[%clk 0:00:42.8]} 26... Qxa1 {[%clk
0:00:12]} 27. Rxf5+ {[%clk 0:00:43.8]} 27... Kg6 {[%clk 0:00:13.3]} 28. Rxb5
{[%clk 0:00:38.3]} 28... Qh1 {[%clk 0:00:11.5]} 29. Ne5+ {[%clk 0:00:37.3]}
29... Kh5 {[%clk 0:00:09.3]} 30. Nd3+ {[%clk 0:00:27.5]} 30... Kh6 {[%clk
0:00:09.2]} 31. Nf4 {[%clk 0:00:25]} 31... Qf3+ {[%clk 0:00:10.3]} 32. Kd2
{[%clk 0:00:26.3]} 32... Qf2+ {[%clk 0:00:09.3]} 33. Kd1 {[%clk 0:00:25.8]}
33... Qf1+ {[%clk 0:00:10.1]} 34. Kc2 {[%clk 0:00:26.6]} 34... Qxb5 {[%clk
0:00:11.8]} 35. Qe7 {[%clk 0:00:20.6]} 35... Ra8 {[%clk 0:00:06.6]} 36. a4
{[%clk 0:00:17.1]} 36... Qc6+ {[%clk 0:00:07.2]} 37. Kb2 {[%clk 0:00:17.8]}
37... Rb8 {[%clk 0:00:08.4]} 38. Qg5# {[%clk 0:00:18.4]} 1-0

[Event "*** Titled Tuesday Blitz"]
[Site "Chess.com"]
[Date "2018.11.06"]
[Round "10"]
[White "andrzej"]
[Black "GMHess"]
[Result "0-1"]
[WhiteElo "2252"]
[BlackElo "2651"]
[TimeControl "180+2"]
[EndTime "15:19:55 PST"]
[Termination "GMHess won by checkmate"]

1. d4 {[%clk 0:03:01.8]} 1... g6 {[%clk 0:02:59.4]} 2. e4 {[%clk 0:03:01.8]}
2... Bg7 {[%clk 0:02:59.8]} 3. Nc3 {[%clk 0:03:03.2]} 3... c6 {[%clk 0:02:59.9]}
4. h3 {[%clk 0:03:01.1]} 4... b5 {[%clk 0:03:00.6]} 5. a3 {[%clk 0:03:01.1]}
5... a5 {[%clk 0:03:01.3]} 6. Be3 {[%clk 0:02:54.4]} 6... d6 {[%clk 0:02:58.7]}
7. g4 {[%clk 0:02:55]} 7... Nd7 {[%clk 0:02:59.7]} 8. Bg2 {[%clk 0:02:56]} 8...
Nb6 {[%clk 0:03:00.9]} 9. Nge2 {[%clk 0:02:45]} 9... Nc4 {[%clk 0:03:01.2]} 10.
Bc1 {[%clk 0:02:46.1]} 10... Bb7 {[%clk 0:02:59.5]} 11. O-O {[%clk 0:02:46.8]}
11... h5 {[%clk 0:02:53]} 12. g5 {[%clk 0:02:45.9]} 12... e6 {[%clk 0:02:27.3]}
13. f4 {[%clk 0:02:45.1]} 13... Ne7 {[%clk 0:02:19.5]} 14. b3 {[%clk 0:02:44.8]}
14... Nb6 {[%clk 0:02:18.9]} 15. Be3 {[%clk 0:02:46.4]} 15... d5 {[%clk
0:02:09.4]} 16. f5 {[%clk 0:02:13.1]} 16... gxf5 {[%clk 0:01:50.2]} 17. exf5
{[%clk 0:01:45.4]} 17... Nxf5 {[%clk 0:01:47.8]} 18. Qd2 {[%clk 0:01:40.3]}
18... Qd7 {[%clk 0:01:25.9]} 19. g6 {[%clk 0:01:30.8]} 19... fxg6 {[%clk
0:01:23.7]} 20. Nf4 {[%clk 0:01:31.7]} 20... O-O-O {[%clk 0:01:22]} 21. Nxg6
{[%clk 0:01:29.2]} 21... Rhg8 {[%clk 0:01:19.5]} 22. Ne2 {[%clk 0:01:00]} 22...
Bh6 {[%clk 0:00:34.2]} 23. Bxh6 {[%clk 0:00:54.3]} 23... Rxg6 {[%clk 0:00:34.9]}
24. Bf4 {[%clk 0:00:16.1]} 24... Nh4 {[%clk 0:00:23.9]} 25. Ng3 {[%clk
0:00:11.9]} 25... Nxg2 {[%clk 0:00:23.1]} 26. Qxg2 {[%clk 0:00:11.5]} 26... h4
{[%clk 0:00:23.2]} 27. Qd2 {[%clk 0:00:08]} 27... e5 {[%clk 0:00:19.3]} 28. dxe5
{[%clk 0:00:07.5]} 28... Qxh3 {[%clk 0:00:20.3]} 29. Qxa5 {[%clk 0:00:07]} 29...
Rxg3+ {[%clk 0:00:20.6]} 30. Bxg3 {[%clk 0:00:08.1]} 30... Qxg3+ {[%clk
0:00:22.5]} 31. Kh1 {[%clk 0:00:09.3]} 31... Qh3+ {[%clk 0:00:21.9]} 32. Kg1
{[%clk 0:00:10.6]} 32... Rg8+ {[%clk 0:00:20.9]} 33. Kf2 {[%clk 0:00:12.2]}
33... Qg3+ {[%clk 0:00:20.5]} 34. Ke2 {[%clk 0:00:13.1]} 34... Qxe5+ {[%clk
0:00:22.1]} 35. Kd2 {[%clk 0:00:03.9]} 35... Rg2+ {[%clk 0:00:21.7]} 36. Kd3
{[%clk 0:00:05.3]} 36... Qe4+ {[%clk 0:00:20.1]} 37. Kc3 {[%clk 0:00:04.7]}
37... Rxc2# {[%clk 0:00:21.1]} 0-1

[Event "*** Titled Tuesday Blitz"]
[Site "Chess.com"]
[Date "2018.11.06"]
[Round "10"]
[White "GianmarcoVaR"]
[Black "GadimbayliA"]
[Result "1-0"]
[WhiteElo "2568"]
[BlackElo "2638"]
[TimeControl "180+2"]
[EndTime "15:19:58 PST"]
[Termination "GianmarcoVaR won by resignation"]

1. d4 {[%clk 0:02:47.4]} 1... c5 {[%clk 0:03:01.9]} 2. d5 {[%clk 0:02:48.2]}
2... g6 {[%clk 0:03:02.6]} 3. Nc3 {[%clk 0:02:48.2]} 3... Bg7 {[%clk 0:03:03.9]}
4. e4 {[%clk 0:02:49.8]} 4... d6 {[%clk 0:03:05.8]} 5. Nf3 {[%clk 0:02:50.9]}
5... Nd7 {[%clk 0:03:07.1]} 6. Be2 {[%clk 0:02:51.8]} 6... Ngf6 {[%clk
0:03:08.4]} 7. O-O {[%clk 0:02:52.9]} 7... O-O {[%clk 0:03:09.4]} 8. Re1 {[%clk
0:02:52.9]} 8... a6 {[%clk 0:03:10.6]} 9. a4 {[%clk 0:02:54]} 9... Rb8 {[%clk
0:03:10.9]} 10. a5 {[%clk 0:02:53]} 10... b5 {[%clk 0:03:11.2]} 11. axb6 {[%clk
0:02:54.4]} 11... Qxb6 {[%clk 0:03:12.3]} 12. Ra2 {[%clk 0:02:50.8]} 12... Ng4
{[%clk 0:03:10.7]} 13. h3 {[%clk 0:02:50.7]} 13... Nge5 {[%clk 0:03:11.7]} 14.
Nd2 {[%clk 0:02:51.9]} 14... Bb7 {[%clk 0:03:08.6]} 15. f4 {[%clk 0:02:48.9]}
15... c4+ {[%clk 0:02:45.4]} 16. Kh2 {[%clk 0:02:47]} 16... Qf2 {[%clk
0:02:24.4]} 17. Rf1 {[%clk 0:02:39.6]} 17... Qh4 {[%clk 0:02:15.3]} 18. g3
{[%clk 0:02:27.1]} 18... Qh6 {[%clk 0:01:50.7]} 19. fxe5 {[%clk 0:02:26.4]}
19... Nxe5 {[%clk 0:01:52.6]} 20. Nxc4 {[%clk 0:02:23.2]} 20... g5 {[%clk
0:01:53.5]} 21. Rf5 {[%clk 0:02:02.7]} 21... Nxc4 {[%clk 0:01:54.2]} 22. Bxc4
{[%clk 0:01:40.1]} 22... Bc8 {[%clk 0:01:54]} 23. Rxg5 {[%clk 0:01:35.5]} 23...
Qxh3+ {[%clk 0:01:53.5]} 24. Kg1 {[%clk 0:01:36.3]} 24... Kh8 {[%clk 0:01:55.4]}
25. Bf1 {[%clk 0:01:25.9]} 25... Qh6 {[%clk 0:01:34.1]} 26. Be3 {[%clk
0:01:03.5]} 26... Bd7 {[%clk 0:01:18.5]} 27. Qf3 {[%clk 0:00:59.5]} 27... a5
{[%clk 0:00:48.6]} 28. Rh5 {[%clk 0:00:45.3]} 28... Qg6 {[%clk 0:00:48.9]} 29.
Rg5 {[%clk 0:00:44.5]} 29... Qh6 {[%clk 0:00:50]} 30. Bd3 {[%clk 0:00:39.5]}
30... f6 {[%clk 0:00:44.5]} 31. Rh5 {[%clk 0:00:38.2]} 31... Qg6 {[%clk
0:00:45.7]} 32. Rh4 {[%clk 0:00:30.4]} 32... f5 {[%clk 0:00:22.3]} 33. Rf4
{[%clk 0:00:21.3]} 33... Be5 {[%clk 0:00:16.4]} 34. exf5 {[%clk 0:00:22.3]}
34... Qf6 {[%clk 0:00:15.6]} 35. Ne4 {[%clk 0:00:21.2]} 35... Qf7 {[%clk
0:00:15.3]} 36. Ng5 {[%clk 0:00:22.1]} 36... Qf6 {[%clk 0:00:09.3]} 37. Rh4
{[%clk 0:00:18.3]} 37... Rb4 {[%clk 0:00:07.7]} 38. Nxh7 {[%clk 0:00:16.9]}
38... Kg8 {[%clk 0:00:09.6]} 39. Nxf6+ {[%clk 0:00:17.5]} 1-0

[Event "*** Titled Tuesday Blitz"]
[Site "Chess.com"]
[Date "2018.11.06"]
[Round "10"]
[White "colegiodemadrid"]
[Black "Morshynska"]
[Result "1-0"]
[WhiteElo "2242"]
[BlackElo "2069"]
[TimeControl "180+2"]
[EndTime "15:19:59 PST"]
[Termination "colegiodemadrid won by resignation"]

1. e4 {[%clk 0:03:01.9]} 1... e5 {[%clk 0:02:57.5]} 2. Nf3 {[%clk 0:03:02.5]}
2... Nc6 {[%clk 0:02:57.1]} 3. Bb5 {[%clk 0:03:03.8]} 3... a6 {[%clk 0:02:57.5]}
4. Ba4 {[%clk 0:03:05.1]} 4... Nf6 {[%clk 0:02:58.1]} 5. Qe2 {[%clk 0:03:06.7]}
5... b5 {[%clk 0:02:56.4]} 6. Bb3 {[%clk 0:03:08.1]} 6... Bc5 {[%clk 0:02:54.6]}
7. c3 {[%clk 0:03:08.8]} 7... O-O {[%clk 0:02:46.3]} 8. O-O {[%clk 0:03:09.9]}
8... h6 {[%clk 0:02:35.3]} 9. a4 {[%clk 0:03:03.9]} 9... Rb8 {[%clk 0:02:33.4]}
10. axb5 {[%clk 0:03:04.1]} 10... axb5 {[%clk 0:02:35.3]} 11. d3 {[%clk
0:03:03.4]} 11... Re8 {[%clk 0:02:26.1]} 12. Be3 {[%clk 0:02:57.5]} 12... Bf8
{[%clk 0:02:21]} 13. Nbd2 {[%clk 0:02:41.7]} 13... d5 {[%clk 0:02:16.8]} 14.
exd5 {[%clk 0:02:39.8]} 14... Nxd5 {[%clk 0:02:18.7]} 15. Ne4 {[%clk 0:02:32.5]}
15... Bg4 {[%clk 0:02:04.4]} 16. h3 {[%clk 0:02:32.8]} 16... Bh5 {[%clk
0:02:03.1]} 17. Ng3 {[%clk 0:02:31.3]} 17... Bg6 {[%clk 0:01:56.5]} 18. Ra6
{[%clk 0:02:32.7]} 18... Qd7 {[%clk 0:01:10.3]} 19. Nh4 {[%clk 0:02:26.4]} 19...
Bh7 {[%clk 0:00:47.6]} 20. Rd1 {[%clk 0:02:26.5]} 20... Nd4 {[%clk 0:00:30.5]}
21. cxd4 {[%clk 0:02:16.9]} 21... exd4 {[%clk 0:00:32.4]} 22. Qf3 {[%clk
0:02:18.4]} 22... Nxe3 {[%clk 0:00:20.7]} 23. fxe3 {[%clk 0:02:16.7]} 23... Rxe3
{[%clk 0:00:22.6]} 24. Qf4 {[%clk 0:02:00.8]} 24... Bd6 {[%clk 0:00:20]} 25.
Rxd6 {[%clk 0:02:00.2]} 25... cxd6 {[%clk 0:00:17.2]} 26. Nhf5 {[%clk
0:01:59.1]} 26... Bxf5 {[%clk 0:00:16.3]} 27. Nxf5 {[%clk 0:01:59.7]} 27... Re5
{[%clk 0:00:16.2]} 28. Rf1 {[%clk 0:01:50.1]} 28... Rf8 {[%clk 0:00:14.7]} 29.
Qg4 {[%clk 0:01:49.5]} 29... Rxf5 {[%clk 0:00:12.5]} 30. Qxf5 {[%clk 0:01:49.8]}
30... Qe7 {[%clk 0:00:13.5]} 31. Qf4 {[%clk 0:01:41.7]} 31... d5 {[%clk
0:00:13.1]} 32. Qxd4 {[%clk 0:01:41.1]} 32... Rd8 {[%clk 0:00:12.5]} 33. Kh1
{[%clk 0:01:40.8]} 33... Kh8 {[%clk 0:00:12.9]} 34. Qf2 {[%clk 0:01:38.2]} 34...
f6 {[%clk 0:00:13.3]} 35. Re1 {[%clk 0:01:36.7]} 35... Qd6 {[%clk 0:00:13.2]}
36. Qd4 {[%clk 0:01:32.9]} 36... Kh7 {[%clk 0:00:12]} 37. Bd1 {[%clk 0:01:30.2]}
37... Qg3 {[%clk 0:00:12.5]} 38. Rf1 {[%clk 0:01:27.2]} 38... Re8 {[%clk
0:00:10.8]} 39. Qxd5 {[%clk 0:01:27.1]} 39... Re1 {[%clk 0:00:11.3]} 40. Qf5+
{[%clk 0:01:24.5]} 40... Kh8 {[%clk 0:00:10.7]} 41. Bh5 {[%clk 0:01:17.7]} 41...
Rxf1+ {[%clk 0:00:09.6]} 42. Qxf1 {[%clk 0:01:18.5]} 42... Qg5 {[%clk
0:00:09.6]} 43. Bf3 {[%clk 0:01:16.1]} 43... Qe5 {[%clk 0:00:10.2]} 44. Qe2
{[%clk 0:01:15.2]} 44... Qb8 {[%clk 0:00:07.8]} 45. d4 {[%clk 0:01:13.8]} 45...
b4 {[%clk 0:00:08.6]} 46. d5 {[%clk 0:01:14.9]} 46... b3 {[%clk 0:00:09.9]} 47.
Qd2 {[%clk 0:01:08]} 47... Qd6 {[%clk 0:00:09.8]} 48. Bd1 {[%clk 0:01:07.6]} 1-0

[Event "*** Titled Tuesday Blitz"]
[Site "Chess.com"]
[Date "2018.11.06"]
[Round "10"]
[White "Iyael"]
[Black "Paparama_1917"]
[Result "0-1"]
[WhiteElo "2051"]
[BlackElo "2558"]
[TimeControl "180+2"]
[EndTime "15:20:03 PST"]
[Termination "Paparama_1917 won by checkmate"]

1. e4 {[%clk 0:03:01.9]} 1... c5 {[%clk 0:02:59.1]} 2. c3 {[%clk 0:03:01.8]}
2... e6 {[%clk 0:02:55.9]} 3. d4 {[%clk 0:03:00.6]} 3... d5 {[%clk 0:02:57.3]}
4. e5 {[%clk 0:03:01.5]} 4... Nc6 {[%clk 0:02:57.7]} 5. Nf3 {[%clk 0:03:01.9]}
5... Qb6 {[%clk 0:02:58.8]} 6. Be2 {[%clk 0:03:01.3]} 6... Nh6 {[%clk 0:02:59]}
7. O-O {[%clk 0:02:46.1]} 7... cxd4 {[%clk 0:02:56.7]} 8. cxd4 {[%clk
0:02:46.3]} 8... Nf5 {[%clk 0:02:57.3]} 9. Nc3 {[%clk 0:02:39.3]} 9... Nfxd4
{[%clk 0:02:47.8]} 10. Be3 {[%clk 0:02:29]} 10... Nxf3+ {[%clk 0:02:45.1]} 11.
Bxf3 {[%clk 0:02:26.4]} 11... Qd8 {[%clk 0:02:44.5]} 12. Bd4 {[%clk 0:02:22.4]}
12... Nxd4 {[%clk 0:02:40.7]} 13. Qxd4 {[%clk 0:02:22.2]} 13... Qb6 {[%clk
0:02:39.7]} 14. Qd2 {[%clk 0:02:17.8]} 14... Bd7 {[%clk 0:02:39.4]} 15. Rfe1
{[%clk 0:02:14.3]} 15... Bc6 {[%clk 0:02:39.1]} 16. a3 {[%clk 0:02:10.7]} 16...
Rd8 {[%clk 0:02:36.6]} 17. b4 {[%clk 0:02:09.3]} 17... a6 {[%clk 0:02:36.9]} 18.
Rab1 {[%clk 0:02:08.8]} 18... Be7 {[%clk 0:02:37.2]} 19. Ne2 {[%clk 0:02:01.8]}
19... O-O {[%clk 0:02:28.7]} 20. Nd4 {[%clk 0:02:02.4]} 20... Ba4 {[%clk
0:02:28.7]} 21. Be2 {[%clk 0:01:53.1]} 21... Rc8 {[%clk 0:02:25.5]} 22. Bd3
{[%clk 0:01:45.7]} 22... g6 {[%clk 0:02:19.3]} 23. Qf4 {[%clk 0:01:31.7]} 23...
Rc3 {[%clk 0:02:07.7]} 24. Re3 {[%clk 0:01:32.2]} 24... f5 {[%clk 0:01:06.8]}
25. exf6 {[%clk 0:01:03.1]} 25... Rxf6 {[%clk 0:01:06.6]} 26. Qe5 {[%clk
0:00:52.2]} 26... Qc7 {[%clk 0:00:42.8]} 27. Qxc7 {[%clk 0:00:41.3]} 27... Rxc7
{[%clk 0:00:44.5]} 28. Nxe6 {[%clk 0:00:41.5]} 28... Rc3 {[%clk 0:00:45.1]} 29.
Nd4 {[%clk 0:00:37.5]} 29... Bf8 {[%clk 0:00:40.6]} 30. Rbe1 {[%clk 0:00:21.1]}
30... Rxa3 {[%clk 0:00:38.8]} 31. b5 {[%clk 0:00:19.4]} 31... axb5 {[%clk
0:00:33.2]} 32. Nxb5 {[%clk 0:00:17.4]} 32... Rxd3 {[%clk 0:00:33.1]} 33. Rxd3
{[%clk 0:00:17.7]} 33... Bxb5 {[%clk 0:00:34]} 34. Rxd5 {[%clk 0:00:19.2]} 34...
Bc6 {[%clk 0:00:35]} 35. Rd8 {[%clk 0:00:19.4]} 35... Kg7 {[%clk 0:00:36.2]} 36.
f3 {[%clk 0:00:20.2]} 36... Bc5+ {[%clk 0:00:37]} 37. Kh1 {[%clk 0:00:20.5]}
37... g5 {[%clk 0:00:37.7]} 38. Rc1 {[%clk 0:00:20]} 38... Rxf3 {[%clk
0:00:30.3]} 39. h4 {[%clk 0:00:16.3]} 39... Rh3# {[%clk 0:00:29.7]} 0-1

[Event "*** Titled Tuesday Blitz"]
[Site "Chess.com"]
[Date "2018.11.06"]
[Round "10"]
[White "AkibaRubi"]
[Black "WorldChampionBulletChess"]
[Result "0-1"]
[WhiteElo "2441"]
[BlackElo "2149"]
[TimeControl "180+2"]
[EndTime "15:20:04 PST"]
[Termination "WorldChampionBulletChess won by resignation"]

1. d4 {[%clk 0:03:01.9]} 1... Nf6 {[%clk 0:03:00]} 2. c4 {[%clk 0:03:02.8]} 2...
e6 {[%clk 0:02:58.5]} 3. Nc3 {[%clk 0:03:00.2]} 3... d5 {[%clk 0:03:00.2]} 4. e3
{[%clk 0:02:59.7]} 4... Be7 {[%clk 0:03:01.1]} 5. Nf3 {[%clk 0:03:00.9]} 5...
O-O {[%clk 0:03:02.6]} 6. Be2 {[%clk 0:03:02.1]} 6... b6 {[%clk 0:03:04]} 7. O-O
{[%clk 0:03:03.3]} 7... Bb7 {[%clk 0:03:05.6]} 8. b3 {[%clk 0:03:02.3]} 8...
Nbd7 {[%clk 0:03:06.9]} 9. Bb2 {[%clk 0:03:02.5]} 9... Re8 {[%clk 0:03:01.4]}
10. cxd5 {[%clk 0:03:03.8]} 10... exd5 {[%clk 0:03:03.2]} 11. Re1 {[%clk
0:03:00.1]} 11... Nf8 {[%clk 0:03:03.8]} 12. Rc1 {[%clk 0:02:51.7]} 12... Ne6
{[%clk 0:03:02.7]} 13. Qc2 {[%clk 0:02:47.1]} 13... g6 {[%clk 0:03:02.9]} 14.
Bb5 {[%clk 0:02:37.9]} 14... c6 {[%clk 0:03:02.8]} 15. Bd3 {[%clk 0:02:38.7]}
15... Ng7 {[%clk 0:03:03.6]} 16. e4 {[%clk 0:02:38.7]} 16... dxe4 {[%clk
0:03:04.1]} 17. Nxe4 {[%clk 0:02:38.3]} 17... Nd5 {[%clk 0:02:58.1]} 18. a3
{[%clk 0:02:15.7]} 18... Qd7 {[%clk 0:02:31.7]} 19. Ne5 {[%clk 0:02:15.7]} 19...
Qc8 {[%clk 0:02:27.7]} 20. Nxc6 {[%clk 0:02:08.4]} 20... Bxc6 {[%clk 0:02:16.7]}
21. Qxc6 {[%clk 0:02:09]} 21... Qd8 {[%clk 0:02:18.3]} 22. Bc4 {[%clk
0:01:46.5]} 22... Nf4 {[%clk 0:02:02.4]} 23. f3 {[%clk 0:01:26.4]} 23... Rc8
{[%clk 0:01:42]} 24. Qa4 {[%clk 0:00:22.6]} 24... Nf5 {[%clk 0:01:22.4]} 25. Bf1
{[%clk 0:00:16.2]} 25... Qd5 {[%clk 0:00:44.5]} 26. b4 {[%clk 0:00:14.8]} 26...
Nh4 {[%clk 0:00:44.3]} 27. Qd1 {[%clk 0:00:13.3]} 27... Rxc1 {[%clk 0:00:37.4]}
28. Qxc1 {[%clk 0:00:14.1]} 28... Nhxg2 {[%clk 0:00:36.1]} 29. Bxg2 {[%clk
0:00:14.3]} 29... Nd3 {[%clk 0:00:37.4]} 30. Qd2 {[%clk 0:00:05.6]} 30... Nxe1
{[%clk 0:00:35.5]} 31. Qxe1 {[%clk 0:00:05.4]} 31... Bf8 {[%clk 0:00:29.1]} 32.
Nf6+ {[%clk 0:00:06.3]} 32... Kh8 {[%clk 0:00:27.8]} 33. Nxd5 {[%clk 0:00:08.2]}
33... Rxe1+ {[%clk 0:00:28.1]} 34. Kf2 {[%clk 0:00:09.3]} 34... Rb1 {[%clk
0:00:27.3]} 35. Bc3 {[%clk 0:00:10.4]} 35... Rc1 {[%clk 0:00:28.2]} 36. Bd2
{[%clk 0:00:11.6]} 36... Rc2 {[%clk 0:00:29.4]} 37. Ke3 {[%clk 0:00:10.5]} 37...
Bh6+ {[%clk 0:00:30.6]} 38. Ke2 {[%clk 0:00:10.5]} 38... Rxd2+ {[%clk 0:00:32]}
39. Ke1 {[%clk 0:00:10.2]} 39... Rxd4 {[%clk 0:00:32.3]} 40. Ne7 {[%clk
0:00:09.8]} 40... Bg5 {[%clk 0:00:29]} 41. Nc6 {[%clk 0:00:08.7]} 41... Bh4+
{[%clk 0:00:30]} 42. Ke2 {[%clk 0:00:09.4]} 42... Rd7 {[%clk 0:00:29.4]} 43. Ne5
{[%clk 0:00:10.1]} 43... Re7 {[%clk 0:00:30.3]} 44. f4 {[%clk 0:00:08.9]} 44...
f6 {[%clk 0:00:30.9]} 0-1